fUSD/lending_fUSD_20240223
["ID","MTS","AMOUNT","RATE_DAILY","PERIOD"]
[315010733,1708729843301,-500.0,0.00027534,2]
[315010734,1708729843309,-500.0,0.00027534,2]
[315010735,1708729843319,-500.0,0.00027534,2]
[315010736,1708729843328,-500.0,0.00027534,2]
[315010737,1708729843338,-502.52,0.00027534,2]
[315010738,1708729843347,-500.0,0.00027534,2]
[315010739,1708729843357,-500.0,0.00027534,2]
[315010740,1708729843366,-500.0,0.00027534,2]
[315010741,1708729843375,-500.0,0.00027534,2]
[315010742,1708729843385,-500.0,0.00027534,2]
[315010743,1708729843395,-437.19267907,0.00027534,2]
[315010744,1708729843404,-500.0,0.00027534,2]
[315010745,1708729843414,-500.0,0.00027534,2]
[315010746,1708729843423,-500.0,0.00027534,2]
[315010747,1708729843433,-500.0,0.00027534,2]
[315010748,1708729843442,-648.12,0.00027534,2]
[315010749,1708729843451,-500.0,0.00027534,2]
[315010750,1708729843460,-500.0,0.00027534,2]
[315010751,1708729843470,-500.0,0.00027534,2]
[315010752,1708729843479,-534.9,0.00027534,2]
[315010753,1708729843488,-500.0,0.00027534,2]
[315010754,1708729843497,-2207.99,0.00027556,2]
[315010755,1708729843507,-289.81,0.0002762,2]
[315010756,1708729843516,-150.0,0.00027644,7]
[315010757,1708729843525,-150.0,0.00027644,7]
[315010758,1708729843534,-500.0,0.00027671,2]
[315010759,1708729843543,-500.0,0.00027671,2]
[315010760,1708729843553,-500.0,0.00027671,2]
[315010761,1708729843562,-500.0,0.00027671,2]
[315010762,1708729843572,-500.0,0.00027671,2]
[315010763,1708729843581,-500.0,0.00027671,2]
[315010764,1708729843591,-500.0,0.00027671,2]
[315010765,1708729843601,-616.12,0.00027671,2]
[315010766,1708729843610,-340.01,0.00027671,2]
[315010767,1708729843619,-500.0,0.00027671,2]
[315010768,1708729843628,-500.0,0.00027671,2]
[315010769,1708729843639,-500.0,0.00027671,2]
[315010770,1708729843649,-527.88,0.00027671,2]
[315010771,1708729843659,-500.0,0.00027671,2]
[315010772,1708729843668,-500.0,0.00027671,2]
[315010773,1708729843677,-500.0,0.00027671,2]
[315010774,1708729843687,-500.0,0.00027671,2]
[315010775,1708729843697,-3718.97,0.00027671,2]
[315010776,1708729843706,-858.95,0.00027671,2]
[315010777,1708729843716,-500.0,0.00027671,2]
[315010778,1708729843725,-500.0,0.00027671,2]
[315010779,1708729843735,-500.0,0.00027671,2]
[315010780,1708729843745,-500.0,0.00027671,2]
[315010781,1708729843754,-492.6682213,0.00027671,2]
[315010782,1708729843764,-500.0,0.00027671,2]
[315010783,1708729843773,-500.0,0.00027671,2]
[315010784,1708729843782,-500.0,0.00027671,2]
[315010785,1708729843792,-932.94,0.00027671,2]
[315010786,1708729843801,-202.42587135,0.00027671,2]
[315010787,1708729843810,-1684.3,0.00027671,2]
[315010788,1708729843820,-574.59,0.00027671,2]
[315010789,1708729843831,-500.0,0.00027671,2]
[315010790,1708729843841,-500.0,0.00027671,2]
[315010791,1708729843851,-611.5968697,0.00027671,2]
[315010792,1708729843859,-500.0,0.00027671,2]
[315010793,1708729843868,-500.0,0.00027671,2]
[315010794,1708729843877,-500.0,0.00027671,2]
[315010795,1708729843888,-500.0,0.00027671,2]
[315010796,1708729843897,-500.0,0.00027671,2]
[315010797,1708729843906,-758.04,0.00027671,2]
[315010798,1708729843915,-500.0,0.00027671,2]
[315010799,1708729843924,-500.0,0.00027671,2]
[315010800,1708729843934,-500.0,0.00027671,2]
[315010801,1708729843943,-500.0,0.00027671,2]
[315010802,1708729843953,-500.0,0.00027671,2]
[315010803,1708729843963,-500.0,0.00027671,2]
[315010804,1708729843972,-500.0,0.00027671,2]
[315010805,1708729843981,-500.0,0.00027671,2]
[315010806,1708729843991,-500.0,0.00027671,2]
[315010807,1708729844000,-306.22049693,0.00027671,2]
[315010808,1708729844010,-2608.69,0.00027671,2]
[315010809,1708729844019,-500.0,0.00027671,2]
[315010810,1708729844029,-500.0,0.00027671,2]
[315010811,1708729844038,-980.1,0.00027671,2]
[315010812,1708729844047,-500.0,0.00027671,2]
[315010813,1708729844057,-500.0,0.00027671,2]
[315010814,1708729844067,-500.0,0.00027671,2]
[315010815,1708729844077,-500.0,0.00027671,2]
[315010816,1708729844086,-500.0,0.00027671,2]
[315010817,1708729844095,-500.0,0.00027671,2]
[315010818,1708729844105,-500.0,0.00027671,2]
[315010819,1708729844114,-500.0,0.00027671,2]
[315010820,1708729844124,-500.0,0.00027671,2]
[315010821,1708729844135,-1005.66,0.00027671,2]
[315010822,1708729844144,-500.0,0.00027671,2]
[315010823,1708729844153,-500.0,0.00027671,2]
[315010824,1708729844167,-500.0,0.00027671,2]
[315010825,1708729844176,-500.0,0.00027671,2]
[315010826,1708729844318,-500.0,0.00027671,2]
[315010827,1708729844345,-500.0,0.00027671,2]
[315010828,1708729844355,-500.0,0.00027671,2]
[315010829,1708729844366,-500.0,0.00027671,2]
[315010830,1708729844375,-500.0,0.00027671,2]
[315010831,1708729844386,-500.0,0.00027671,2]
[315010832,1708729844395,-500.0,0.00027671,2]
[315010833,1708729844405,-500.0,0.00027671,2]
[315010834,1708729844414,-500.0,0.00027671,2]
[315010835,1708729844423,-500.0,0.00027671,2]
[315010836,1708729844432,-500.0,0.00027671,2]
[315010837,1708729844442,-500.0,0.00027671,2]
[315010838,1708729844451,-1181.37,0.00027671,2]
[315010839,1708729844461,-500.0,0.00027671,2]
[315010840,1708729844471,-500.0,0.00027671,2]
[315010841,1708729844480,-2152.3,0.00027671,2]
[315010842,1708729844490,-520.05,0.00027671,2]
[315010843,1708729844499,-500.0,0.00027671,2]
[315010844,1708729844509,-500.0,0.00027671,2]
[315010845,1708729844519,-2775.07,0.00027671,2]
[315010846,1708729844528,-500.0,0.00027671,2]
[315010847,1708729844538,-488.7655902,0.00027671,2]
[315010848,1708729844548,-500.0,0.00027671,2]
[315010849,1708729844560,-500.0,0.00027671,2]
[315010850,1708729844570,-348.20914881,0.00027671,2]
[315010851,1708729844580,-502.52,0.00027671,2]
[315010852,1708729844590,-500.0,0.00027671,2]
[315010853,1708729844601,-500.0,0.00027671,2]
[315010854,1708729844611,-500.0,0.00027671,2]
[315010855,1708729844621,-312.84262784,0.00027671,2]
[315010856,1708729844631,-500.0,0.00027671,2]
[315010857,1708729844641,-500.0,0.00027671,2]
[315010858,1708729844652,-500.0,0.00027671,2]
[315010859,1708729844661,-500.0,0.00027671,2]
[315010860,1708729844671,-648.12,0.00027671,2]
[315010861,1708729844680,-500.0,0.00027671,2]
[315010862,1708729844690,-500.0,0.00027671,2]
[315010863,1708729844700,-500.0,0.00027671,2]
[315010864,1708729844709,-534.9,0.00027671,2]
[315010865,1708729844719,-500.0,0.00027671,2]
[315010866,1708729844728,-186.94888865,0.00027708,2]
[315010867,1708729844738,-2207.99,0.00027714,2]
[315010868,1708729844747,-3717.32,0.00027768,2]
[315010869,1708729844757,-319.12,0.00027808,2]
[315010870,1708729844766,-500.0,0.00027808,2]
[315010871,1708729844776,-500.0,0.00027808,2]
[315010872,1708729844786,-500.0,0.00027808,2]
[315010873,1708729844796,-500.0,0.00027808,2]
[315010874,1708729844805,-500.0,0.00027808,2]
[315010875,1708729844815,-616.12,0.00027808,2]
[315010876,1708729844825,-500.0,0.00027808,2]
[315010877,1708729844834,-500.0,0.00027808,2]
[315010878,1708729844845,-500.0,0.00027808,2]
[315010879,1708729844854,-527.88,0.00027808,2]
[315010880,1708729844864,-500.0,0.00027808,2]
[315010881,1708729844875,-500.0,0.00027808,2]
[315010882,1708729844885,-500.0,0.00027808,2]
[315010883,1708729844895,-3718.97,0.00027808,2]
[315010884,1708729844905,-858.95,0.00027808,2]
[315010885,1708729844915,-500.0,0.00027808,2]
[315010886,1708729844924,-500.0,0.00027808,2]
[315010887,1708729844934,-387.04,0.00027808,2]
[315010888,1708729844943,-500.0,0.00027808,2]
[315010889,1708729844953,-500.0,0.00027808,2]
[315010890,1708729844963,-500.0,0.00027808,2]
[315010891,1708729844972,-500.0,0.00027808,2]
[315010892,1708729844981,-932.94,0.00027808,2]
[315010893,1708729844991,-1684.3,0.00027808,2]
[315010894,1708729845000,-574.59,0.00027808,2]
[315010895,1708729845009,-500.0,0.00027808,2]
[315010896,1708729845018,-500.0,0.00027808,2]
[315010897,1708729845028,-500.0,0.00027808,2]
[315010898,1708729845037,-500.0,0.00027808,2]
[315010899,1708729845046,-500.0,0.00027808,2]
[315010900,1708729845055,-500.0,0.00027808,2]
[315010901,1708729845064,-500.0,0.00027808,2]
[315010902,1708729845073,-758.04,0.00027808,2]
[315010903,1708729845082,-469.7335711,0.00027808,2]
[315010904,1708729845091,-500.0,0.00027808,2]
[315010905,1708729845115,-500.0,0.00027808,2]
[315010906,1708729845124,-560.91,0.00027808,2]
[315010907,1708729845134,-500.0,0.00027808,2]
[315010908,1708729845143,-500.0,0.00027808,2]
[315010909,1708729845152,-500.0,0.00027808,2]
[315010910,1708729845167,-500.0,0.00027808,2]
[315010911,1708729845176,-2608.69,0.00027808,2]
[315010912,1708729845185,-500.0,0.00027808,2]
[315010913,1708729845194,-980.1,0.00027808,2]
[315010914,1708729845206,-500.0,0.00027808,2]
[315010915,1708729845215,-500.0,0.00027808,2]
[315010916,1708729845225,-500.0,0.00027808,2]
[315010917,1708729845236,-500.0,0.00027808,2]
[315010918,1708729845246,-500.0,0.00027808,2]
[315010919,1708729845255,-500.0,0.00027808,2]
[315010920,1708729845264,-500.0,0.00027808,2]
[315010921,1708729845274,-500.0,0.00027808,2]
[315010922,1708729845284,-500.0,0.00027808,2]
[315010923,1708729845293,-1005.66,0.00027808,2]
[315010924,1708729845302,-500.0,0.00027808,2]
[315010925,1708729845312,-297.3442491,0.00027808,2]
[315010926,1708729845321,-500.0,0.00027808,2]
[315010927,1708729845331,-500.0,0.00027808,2]
[315010928,1708729845340,-500.0,0.00027808,2]
[315010929,1708729845350,-500.0,0.00027808,2]
[315010930,1708729845359,-500.0,0.00027808,2]
[315010931,1708729845369,-389.48398577,0.00027808,2]
[315010932,1708729845378,-500.0,0.00027808,2]
[315010933,1708729845388,-500.0,0.00027808,2]
[315010934,1708729845397,-500.0,0.00027808,2]
[315010935,1708729845407,-500.0,0.00027808,2]
[315010936,1708729845416,-500.0,0.00027808,2]
[315010937,1708729845425,-500.0,0.00027808,2]
[315010938,1708729845435,-500.0,0.00027808,2]
[315010939,1708729845444,-1181.37,0.00027808,2]
[315010940,1708729845454,-500.0,0.00027808,2]
[315010941,1708729845463,-500.0,0.00027808,2]
[315010942,1708729845473,-2152.3,0.00027808,2]
[315010943,1708729845483,-520.05,0.00027808,2]
[315010944,1708729845492,-500.0,0.00027808,2]
[315010945,1708729845503,-2775.07,0.00027808,2]
[315010946,1708729845512,-500.0,0.00027808,2]
[315010947,1708729845521,-500.0,0.00027808,2]
[315010948,1708729845532,-502.52,0.00027808,2]
[315010949,1708729845542,-500.0,0.00027808,2]
[315010950,1708729845551,-500.0,0.00027808,2]
[315010951,1708729845561,-500.0,0.00027808,2]
[315010952,1708729845571,-500.0,0.00027808,2]
[315010953,1708729845581,-500.0,0.00027808,2]
[315010954,1708729845591,-648.12,0.00027808,2]
[315010955,1708729845600,-500.0,0.00027808,2]
[315010956,1708729845610,-500.0,0.00027808,2]
[315010957,1708729845620,-534.9,0.00027808,2]
[315010958,1708729845631,-500.0,0.00027808,2]
[315010959,1708729845642,-9145.89361532,0.0002782,2]
[315010960,1708729845651,-607.45729038,0.0002782,2]
[315010961,1708729845661,-2207.99,0.00027872,2]
[315010962,1708729845671,-150.0,0.0002789,7]
[315010963,1708729845680,-150.0,0.0002789,7]
[315010964,1708729845690,-1519033.54884589,0.000279,2]
[315010965,1708729845700,-152.54,0.0002792,2]
[315010966,1708729845710,-500.0,0.00027945,2]
[315010967,1708729845720,-500.0,0.00027945,2]
[315010968,1708729845729,-500.0,0.00027945,2]
[315010969,1708729845739,-500.0,0.00027945,2]
[315010970,1708729845749,-500.0,0.00027945,2]
[315010971,1708729845759,-616.12,0.00027945,2]
[315010972,1708729845769,-500.0,0.00027945,2]
[315010973,1708729845779,-500.0,0.00027945,2]
[315010974,1708729845789,-500.0,0.00027945,2]
[315010975,1708729845799,-527.88,0.00027945,2]
[315010976,1708729845809,-500.0,0.00027945,2]
[315010977,1708729845819,-500.0,0.00027945,2]
[315010978,1708729845829,-3718.97,0.00027945,2]
[315010979,1708729845840,-858.95,0.00027945,2]
[315010980,1708729845850,-500.0,0.00027945,2]
[315010981,1708729845859,-500.0,0.00027945,2]
[315010982,1708729845869,-500.0,0.00027945,2]
[315010983,1708729845879,-500.0,0.00027945,2]
[315010984,1708729845889,-932.94,0.00027945,2]
[315010985,1708729845898,-1684.3,0.00027945,2]
[315010986,1708729845907,-574.59,0.00027945,2]
[315010987,1708729845917,-500.0,0.00027945,2]
[315010988,1708729845926,-500.0,0.00027945,2]
[315010989,1708729845936,-500.0,0.00027945,2]
[315010990,1708729845946,-500.0,0.00027945,2]
[315010991,1708729845955,-500.0,0.00027945,2]
[315010992,1708729845965,-500.0,0.00027945,2]
[315010993,1708729845975,-500.0,0.00027945,2]
[315010994,1708729845985,-758.04,0.00027945,2]
[315010995,1708729845995,-154.12,0.00027945,2]
[315010996,1708729846005,-500.0,0.00027945,2]
[315010997,1708729846015,-500.0,0.00027945,2]
[315010998,1708729846025,-555.28595063,0.00027945,2]
[315010999,1708729846035,-500.0,0.00027945,2]
[315011000,1708729846045,-500.0,0.00027945,2]
[315011001,1708729846055,-2608.69,0.00027945,2]
[315011002,1708729846065,-500.0,0.00027945,2]
[315011003,1708729846075,-980.1,0.00027945,2]
[315011004,1708729846085,-500.0,0.00027945,2]
[315011005,1708729846094,-500.0,0.00027945,2]
[315011006,1708729846104,-500.0,0.00027945,2]
[315011007,1708729846113,-280.73,0.00027945,2]
[315011008,1708729846122,-500.0,0.00027945,2]
[315011009,1708729846132,-500.0,0.00027945,2]
[315011010,1708729846141,-500.0,0.00027945,2]
[315011012,1708729846151,-500.0,0.00027945,2]
[315011013,1708729846165,-310.47,0.00027945,2]
[315011015,1708729846174,-1005.66,0.00027945,2]
[315011017,1708729846184,-500.0,0.00027945,2]
[315011018,1708729846193,-500.0,0.00027945,2]
[315011019,1708729846204,-500.0,0.00027945,2]
[315011020,1708729846214,-500.0,0.00027945,2]
[315011021,1708729846225,-500.0,0.00027945,2]
[315011022,1708729846235,-500.0,0.00027945,2]
[315011023,1708729846245,-500.0,0.00027945,2]
[315011024,1708729846255,-500.0,0.00027945,2]
[315011025,1708729846264,-500.0,0.00027945,2]
[315011026,1708729846274,-500.0,0.00027945,2]
[315011027,1708729846284,-500.0,0.00027945,2]
[315011028,1708729846294,-500.0,0.00027945,2]
[315011029,1708729846303,-500.0,0.00027945,2]
[315011030,1708729846314,-1181.37,0.00027945,2]
[315011031,1708729846323,-500.0,0.00027945,2]
[315011032,1708729846333,-500.0,0.00027945,2]
[315011033,1708729846343,-2152.3,0.00027945,2]
[315011034,1708729846352,-520.05,0.00027945,2]
[315011035,1708729846362,-500.0,0.00027945,2]
[315011036,1708729846376,-2775.07,0.00027945,2]
[315011037,1708729846386,-500.0,0.00027945,2]
[315011038,1708729846395,-500.0,0.00027945,2]
[315011039,1708729846406,-502.52,0.00027945,2]
[315011040,1708729846415,-500.0,0.00027945,2]
[315011041,1708729846425,-500.0,0.00027945,2]
[315011042,1708729846436,-500.0,0.00027945,2]
[315011043,1708729846446,-502.72479742,0.00027945,2]
[315011044,1708729846457,-500.0,0.00027945,2]
[315011045,1708729846467,-648.12,0.00027945,2]
[315011046,1708729846477,-500.0,0.00027945,2]
[315011047,1708729846486,-500.0,0.00027945,2]
[315011048,1708729846497,-534.9,0.00027945,2]
[315011049,1708729846506,-500.0,0.00027945,2]
[315011050,1708729846516,-29737.10057392,0.00028,2]
[315011051,1708729846525,-588.12422923,0.00028,7]
[315011052,1708729846535,-2207.99,0.0002803,2]
[315011053,1708729846545,-186.0,0.00028041,2]
[315011054,1708729846554,-611.16,0.00028082,2]
[315011055,1708729846565,-500.0,0.00028082,2]
[315011056,1708729846576,-500.0,0.00028082,2]
[315011057,1708729846585,-500.0,0.00028082,2]
[315011058,1708729846595,-500.0,0.00028082,2]
[315011059,1708729846605,-616.12,0.00028082,2]
[315011060,1708729846615,-500.0,0.00028082,2]
[315011061,1708729846625,-500.0,0.00028082,2]
[315011062,1708729846635,-500.0,0.00028082,2]
[315011063,1708729846645,-527.88,0.00028082,2]
[315011064,1708729846654,-500.0,0.00028082,2]
[315011065,1708729846664,-373.34030771,0.00028082,2]
[315011066,1708729846674,-3718.97,0.00028082,2]
[315011067,1708729846684,-858.95,0.00028082,2]
[315011068,1708729846694,-500.0,0.00028082,2]
[315011069,1708729846704,-500.0,0.00028082,2]
[315011072,1708729846771,-500.0,0.00028082,2]
[315011073,1708729846780,-500.0,0.00028082,2]
[315011074,1708729846790,-932.94,0.00028082,2]
[315011075,1708729846799,-1684.3,0.00028082,2]
[315011077,1708729846813,-574.59,0.00028082,2]
[315011079,1708729846823,-500.0,0.00028082,2]
[315011082,1708729846833,-500.0,0.00028082,2]
[315011084,1708729846843,-500.0,0.00028082,2]
[315011085,1708729846854,-500.0,0.00028082,2]
[315011087,1708729846864,-500.0,0.00028082,2]
[315011089,1708729846873,-758.04,0.00028082,2]
[315011091,1708729846883,-500.0,0.00028082,2]
[315011093,1708729846892,-500.0,0.00028082,2]
[315011095,1708729846902,-500.0,0.00028082,2]
[315011097,1708729846912,-500.0,0.00028082,2]
[315011100,1708729846922,-2608.69,0.00028082,2]
[315011102,1708729846933,-500.0,0.00028082,2]
[315011103,1708729846943,-980.1,0.00028082,2]
[315011104,1708729846952,-500.0,0.00028082,2]
[315011105,1708729846962,-500.0,0.00028082,2]
[315011106,1708729846972,-500.0,0.00028082,2]
[315011107,1708729846982,-500.0,0.00028082,2]
[315011108,1708729846991,-500.0,0.00028082,2]
[315011109,1708729847000,-500.0,0.00028082,2]
[315011110,1708729847012,-1005.66,0.00028082,2]
[315011111,1708729847021,-500.0,0.00028082,2]
[315011112,1708729847030,-500.0,0.00028082,2]
[315011113,1708729847040,-550.47,0.00028082,2]
[315011114,1708729847050,-500.0,0.00028082,2]
[315011115,1708729847059,-500.0,0.00028082,2]
[315011117,1708729847069,-500.0,0.00028082,2]
[315011119,1708729847079,-500.0,0.00028082,2]
[315011121,1708729847088,-500.0,0.00028082,2]
[315011123,1708729847101,-500.0,0.00028082,2]
[315011125,1708729847111,-500.0,0.00028082,2]
[315011127,1708729847120,-500.0,0.00028082,2]
[315011129,1708729847130,-500.0,0.00028082,2]
[315011131,1708729847140,-500.0,0.00028082,2]
[315011133,1708729847149,-1181.37,0.00028082,2]
[315011135,1708729847161,-500.0,0.00028082,2]
[315011137,1708729847171,-500.0,0.00028082,2]
[315011139,1708729847181,-2152.3,0.00028082,2]
[315011141,1708729847190,-520.05,0.00028082,2]
[315011143,1708729847201,-500.0,0.00028082,2]
[315011145,1708729847213,-2775.07,0.00028082,2]
[315011147,1708729847224,-500.0,0.00028082,2]
[315011149,1708729847234,-500.0,0.00028082,2]
[315011151,1708729847245,-502.52,0.00028082,2]
[315011153,1708729847254,-500.0,0.00028082,2]
[315011155,1708729847263,-500.0,0.00028082,2]
[315011157,1708729847273,-500.0,0.00028082,2]
[315011159,1708729847283,-648.12,0.00028082,2]
[315011161,1708729847293,-500.0,0.00028082,2]
[315011163,1708729847303,-500.0,0.00028082,2]
[315011165,1708729847313,-534.9,0.00028082,2]
[315011167,1708729847322,-7992.17865922,0.0002813,2]
[315011169,1708729847332,-28719.96,0.00028132,2]
[315011171,1708729847341,-28719.96,0.00028132,2]
[315011173,1708729847351,-28719.96,0.00028132,2]
[315011175,1708729847360,-28719.96,0.00028132,2]
[315011177,1708729847370,-28719.96,0.00028132,2]
[315011180,1708729847382,-28719.96,0.00028132,2]
[315011182,1708729847391,-28719.96,0.00028132,2]
[315011184,1708729847400,-28719.96,0.00028132,2]
[315011186,1708729847410,-28719.96,0.00028132,2]
[315011188,1708729847419,-28719.96,0.00028132,2]
[315011190,1708729847429,-28719.96,0.00028132,2]
[315011192,1708729847438,-28719.96,0.00028132,2]
[315011194,1708729847448,-28719.96,0.00028132,2]
[315011196,1708729847457,-28719.96,0.00028132,2]
[315011198,1708729847467,-28719.96,0.00028132,2]
[315011200,1708729847477,-28720.03739558,0.00028132,2]
[315011202,1708729847486,-150.0,0.00028137,7]
[315011204,1708729847496,-2207.99,0.00028189,2]
[315011206,1708729847505,-500.0,0.00028219,2]
[315011208,1708729847514,-500.0,0.00028219,2]
[315011210,1708729847523,-500.0,0.00028219,2]
[315011212,1708729847533,-500.0,0.00028219,2]
[315011214,1708729847542,-616.12,0.00028219,2]
[315011216,1708729847551,-500.0,0.00028219,2]
[315011218,1708729847561,-500.0,0.00028219,2]
[315011220,1708729847572,-500.0,0.00028219,2]
[315011222,1708729847582,-527.88,0.00028219,2]
[315011224,1708729847591,-500.0,0.00028219,2]
[315011226,1708729847601,-3718.97,0.00028219,2]
[315011228,1708729847610,-858.95,0.00028219,2]
[315011230,1708729847619,-500.0,0.00028219,2]
[315011232,1708729847629,-500.0,0.00028219,2]
[315011234,1708729847640,-500.0,0.00028219,2]
[315011236,1708729847650,-500.0,0.00028219,2]
[315011238,1708729847659,-932.94,0.00028219,2]
[315011240,1708729847669,-1684.3,0.00028219,2]
[315011242,1708729847678,-574.59,0.00028219,2]
[315011244,1708729847688,-634.09098394,0.00028219,2]
[315011246,1708729847697,-500.0,0.00028219,2]
[315011248,1708729847706,-500.0,0.00028219,2]
[315011250,1708729847716,-500.0,0.00028219,2]
[315011252,1708729847726,-500.0,0.00028219,2]
[315011254,1708729847736,-758.04,0.00028219,2]
[315011256,1708729847745,-500.0,0.00028219,2]
[315011258,1708729847755,-500.0,0.00028219,2]
[315011260,1708729847765,-500.0,0.00028219,2]
[315011262,1708729847774,-500.0,0.00028219,2]
[315011264,1708729847784,-2608.69,0.00028219,2]
[315011266,1708729847793,-500.0,0.00028219,2]
[315011268,1708729847803,-980.1,0.00028219,2]
[315011270,1708729847812,-500.0,0.00028219,2]
[315011272,1708729847821,-500.0,0.00028219,2]
[315011274,1708729847830,-500.0,0.00028219,2]
[315011276,1708729847839,-500.0,0.00028219,2]
[315011278,1708729847849,-592.11832571,0.00028219,2]
[315011280,1708729847859,-500.0,0.00028219,2]
[315011282,1708729847868,-1005.66,0.00028219,2]
[315011284,1708729847877,-500.0,0.00028219,2]
[315011286,1708729847888,-500.0,0.00028219,2]
[315011288,1708729847898,-500.0,0.00028219,2]
[315011290,1708729847907,-500.0,0.00028219,2]
[315011292,1708729847916,-500.0,0.00028219,2]
[315011294,1708729847926,-500.0,0.00028219,2]
[315011296,1708729847935,-500.0,0.00028219,2]
[315011300,1708729847954,-500.0,0.00028219,2]
[315011302,1708729847965,-500.0,0.00028219,2]
[315011304,1708729847975,-500.0,0.00028219,2]
[315011306,1708729847984,-500.0,0.00028219,2]
[315011308,1708729847994,-1181.37,0.00028219,2]
[315011310,1708729848003,-500.0,0.00028219,2]
[315011312,1708729848013,-500.0,0.00028219,2]
[315011314,1708729848022,-2152.3,0.00028219,2]
[315011316,1708729848032,-520.05,0.00028219,2]
[315011318,1708729848041,-500.0,0.00028219,2]
[315011320,1708729848050,-2775.07,0.00028219,2]
[315011322,1708729848060,-500.0,0.00028219,2]
[315011324,1708729848069,-500.0,0.00028219,2]
[315011326,1708729848079,-502.52,0.00028219,2]
[315011328,1708729848088,-500.0,0.00028219,2]
[315011330,1708729848098,-648.12,0.00028219,2]
[315011332,1708729848107,-500.0,0.00028219,2]
[315011334,1708729848116,-534.9,0.00028219,2]
[315011336,1708729848125,-256.08,0.000283,2]
[315011338,1708729848134,-2207.99,0.00028347,2]
[315011341,1708729848144,-500.0,0.00028356,2]
[315011343,1708729848153,-500.0,0.00028356,2]
[315011344,1708729848166,-500.0,0.00028356,2]
[315011346,1708729848175,-500.0,0.00028356,2]
[315011349,1708729848184,-616.12,0.00028356,2]
[315011351,1708729848194,-500.0,0.00028356,2]
[315011353,1708729848204,-500.0,0.00028356,2]
[315011354,1708729848215,-500.0,0.00028356,2]
[315011356,1708729848225,-527.88,0.00028356,2]
[315011358,1708729848234,-465.92514728,0.00028356,2]
[315011360,1708729848243,-3718.97,0.00028356,2]
[315011362,1708729848253,-858.95,0.00028356,2]
[315011364,1708729848263,-500.0,0.00028356,2]
[315011367,1708729848273,-500.0,0.00028356,2]
[315011368,1708729848282,-500.0,0.00028356,2]
[315011369,1708729848291,-500.0,0.00028356,2]
[315011370,1708729848302,-932.94,0.00028356,2]
[315011371,1708729848312,-1684.3,0.00028356,2]
[315011372,1708729848321,-574.59,0.00028356,2]
[315011373,1708729848330,-500.0,0.00028356,2]
[315011374,1708729848339,-500.0,0.00028356,2]
[315011375,1708729848348,-500.0,0.00028356,2]
[315011376,1708729848357,-758.04,0.00028356,2]
[315011377,1708729848367,-500.0,0.00028356,2]
[315011378,1708729848376,-500.0,0.00028356,2]
[315011379,1708729848387,-411.64167793,0.00028356,2]